[Event "Late-Titled-Tuesday-Blitz-February-27-2024"]
[Site "Chess.com"]
[Date "2024.02.27"]
[Round "8"]
[White "dosto07"]
[Black "Evgeny81"]
[Result "0-1"]
[WhiteElo "2513"]
[BlackElo "2764"]
[TimeControl "180+1"]
[EndTime "15:26:09 PST"]
[Termination "Evgeny81 won by resignation"]

1. e4 {[%clk 0:03:00.9]} 1... c5 {[%clk 0:03:00.4]} 2. Nf3 {[%clk 0:03:01.1]}
2... a6 {[%clk 0:03:00]} 3. c3 {[%clk 0:03:00.4]} 3... b5 {[%clk 0:02:57.8]} 4.
d4 {[%clk 0:02:59.8]} 4... cxd4 {[%clk 0:02:58.2]} 5. cxd4 {[%clk 0:02:59.3]}
5... Bb7 {[%clk 0:02:58.9]} 6. Bd3 {[%clk 0:02:59.2]} 6... Nf6 {[%clk
0:02:58.6]} 7. Qe2 {[%clk 0:02:59.5]} 7... e6 {[%clk 0:02:58.8]} 8. O-O {[%clk
0:02:59.6]} 8... Be7 {[%clk 0:02:58.9]} 9. Bg5 {[%clk 0:02:52.3]} 9... h6 {[%clk
0:02:58]} 10. Bh4 {[%clk 0:02:51.8]} 10... d5 {[%clk 0:02:54.8]} 11. Bxf6 {[%clk
0:02:44.9]} 11... Bxf6 {[%clk 0:02:53.1]} 12. e5 {[%clk 0:02:45.2]} 12... Be7
{[%clk 0:02:52.6]} 13. Nbd2 {[%clk 0:02:45.9]} 13... Nc6 {[%clk 0:02:50.5]} 14.
a3 {[%clk 0:02:42]} 14... Na5 {[%clk 0:02:48.2]} 15. Bc2 {[%clk 0:02:09.6]}
15... Rc8 {[%clk 0:02:45.1]} 16. Rfc1 {[%clk 0:02:07.7]} 16... Nc4 {[%clk
0:02:42.8]} 17. Nxc4 {[%clk 0:01:44.1]} 17... dxc4 {[%clk 0:02:42.3]} 18. Be4
{[%clk 0:01:43.8]} 18... Bd5 {[%clk 0:02:42.2]} 19. h3 {[%clk 0:01:31.5]} 19...
O-O {[%clk 0:02:41.6]} 20. Nh2 {[%clk 0:01:21.9]} 20... Bg5 {[%clk 0:02:36.6]}
21. Rc3 {[%clk 0:01:20]} 21... a5 {[%clk 0:02:34.5]} 22. Rg3 {[%clk 0:01:18]}
22... b4 {[%clk 0:02:28.5]} 23. axb4 {[%clk 0:01:16.7]} 23... axb4 {[%clk
0:02:28.2]} 24. Ng4 {[%clk 0:01:11.9]} 24... c3 {[%clk 0:02:23.1]} 25. bxc3
{[%clk 0:01:04.6]} 25... Rxc3 {[%clk 0:02:22.6]} 26. Rxc3 {[%clk 0:00:47.5]}
26... bxc3 {[%clk 0:02:23.5]} 27. g3 {[%clk 0:00:38]} 27... Bd2 {[%clk
0:02:20.7]} 28. Nh2 {[%clk 0:00:28.7]} 28... Qc7 {[%clk 0:02:11.4]} 29. Bxd5
{[%clk 0:00:22.2]} 29... exd5 {[%clk 0:02:10.2]} 30. Nf3 {[%clk 0:00:21.2]}
30... Bg5 {[%clk 0:02:06.2]} 31. Nxg5 {[%clk 0:00:19.1]} 31... hxg5 {[%clk
0:02:05.7]} 32. e6 {[%clk 0:00:19.2]} 32... Re8 {[%clk 0:01:48.8]} 33. exf7+
{[%clk 0:00:15.2]} 33... Qxf7 {[%clk 0:01:49.7]} 34. Qd3 {[%clk 0:00:13.9]}
34... Rc8 {[%clk 0:01:44.7]} 35. Rc1 {[%clk 0:00:13.6]} 35... Qe6 {[%clk
0:01:38.2]} 36. Rxc3 {[%clk 0:00:11.2]} 36... Qe1+ {[%clk 0:01:38.1]} 37. Kg2
{[%clk 0:00:10.3]} 37... Qxc3 {[%clk 0:01:39]} 38. Qf5 {[%clk 0:00:08.3]} 38...
Qc6 {[%clk 0:01:37.2]} 39. Qxg5 {[%clk 0:00:08.1]} 39... Rf8 {[%clk 0:01:37.4]}
40. h4 {[%clk 0:00:08]} 40... Qe6 {[%clk 0:01:37.2]} 41. Qd2 {[%clk 0:00:07.8]}
41... Qe4+ {[%clk 0:01:36.8]} 42. Kg1 {[%clk 0:00:08.4]} 42... Re8 {[%clk
0:01:36.1]} 43. Kh2 {[%clk 0:00:07.6]} 43... Qe2 {[%clk 0:01:34.3]} 44. Qf4
{[%clk 0:00:07.7]} 44... Rf8 {[%clk 0:01:34.5]} 0-1

[Event "Late-Titled-Tuesday-Blitz-February-27-2024"]
[Site "Chess.com"]
[Date "2024.02.27"]
[Round "8"]
[White "Anna20240"]
[Black "Viktor_Poddubnyi"]
[Result "0-1"]
[WhiteElo "1924"]
[BlackElo "2266"]
[TimeControl "180+1"]
[EndTime "15:26:11 PST"]
[Termination "Viktor_Poddubnyi won by resignation"]

1. d4 {[%clk 0:02:59.8]} 1... g6 {[%clk 0:03:00.2]} 2. c4 {[%clk 0:02:58.5]}
2... Bg7 {[%clk 0:03:00.5]} 3. Nf3 {[%clk 0:02:57.6]} 3... c5 {[%clk 0:03:00.6]}
4. d5 {[%clk 0:02:55.7]} 4... f5 {[%clk 0:03:00.9]} 5. Nc3 {[%clk 0:02:54.6]}
5... d6 {[%clk 0:03:01.2]} 6. e4 {[%clk 0:02:49.9]} 6... Bxc3+ {[%clk
0:03:01.4]} 7. bxc3 {[%clk 0:02:45.8]} 7... fxe4 {[%clk 0:03:02.3]} 8. Ng5
{[%clk 0:02:42.6]} 8... Nf6 {[%clk 0:03:02.4]} 9. Qc2 {[%clk 0:02:39.2]} 9...
Bf5 {[%clk 0:03:01.6]} 10. h3 {[%clk 0:02:29.8]} 10... h6 {[%clk 0:03:00.7]} 11.
g4 {[%clk 0:02:26.4]} 11... hxg5 {[%clk 0:02:51.7]} 12. gxf5 {[%clk 0:02:25.6]}
12... gxf5 {[%clk 0:02:52.6]} 13. f3 {[%clk 0:02:24.9]} 13... Nbd7 {[%clk
0:02:23.5]} 14. Bxg5 {[%clk 0:01:57.4]} 14... Ne5 {[%clk 0:02:12.3]} 15. Bxf6
{[%clk 0:01:51.8]} 15... Nxf3+ {[%clk 0:02:09.6]} 16. Kd1 {[%clk 0:01:47.6]}
16... exf6 {[%clk 0:02:09.7]} 17. Bg2 {[%clk 0:01:42.7]} 17... Nh4 {[%clk
0:02:02.9]} 18. Rf1 {[%clk 0:01:19.9]} 18... Qe7 {[%clk 0:01:48]} 19. Qf2 {[%clk
0:00:57.3]} 19... O-O-O {[%clk 0:01:43.3]} 20. Bh1 {[%clk 0:00:40.9]} 20... Qe5
{[%clk 0:01:38.1]} 21. Kc2 {[%clk 0:00:40.1]} 21... f4 {[%clk 0:01:35.8]} 22.
Qxf4 {[%clk 0:00:39.5]} 22... Nf3 {[%clk 0:01:10]} 23. Qg4+ {[%clk 0:00:30.9]}
23... f5 {[%clk 0:01:03.6]} 24. Qg6 {[%clk 0:00:18.5]} 24... Rxh3 {[%clk
0:00:58.7]} 25. Bxf3 {[%clk 0:00:18]} 25... Rxf3 {[%clk 0:00:55.7]} 26. Rxf3
{[%clk 0:00:16]} 26... exf3 {[%clk 0:00:56.6]} 27. Rf1 {[%clk 0:00:14.5]} 27...
Qe2+ {[%clk 0:00:55.5]} 0-1

[Event "Late-Titled-Tuesday-Blitz-February-27-2024"]
[Site "Chess.com"]
[Date "2024.02.27"]
[Round "8"]
[White "yuriydovzik"]
[Black "IngOscarArdila"]
[Result "0-1"]
[WhiteElo "2128"]
[BlackElo "2290"]
[TimeControl "180+1"]
[EndTime "15:26:18 PST"]
[Termination "IngOscarArdila won on time"]

1. e4 {[%clk 0:03:00.9]} 1... e5 {[%clk 0:02:59.6]} 2. Nf3 {[%clk 0:02:55.3]}
2... Nf6 {[%clk 0:02:59]} 3. Nc3 {[%clk 0:02:53.7]} 3... Nc6 {[%clk 0:02:58.7]}
4. Bc4 {[%clk 0:02:51.7]} 4... Bb4 {[%clk 0:02:58]} 5. O-O {[%clk 0:02:47.8]}
5... O-O {[%clk 0:02:57.7]} 6. d3 {[%clk 0:02:43.8]} 6... d6 {[%clk 0:02:57.3]}
7. a3 {[%clk 0:02:37.1]} 7... Bxc3 {[%clk 0:02:56.9]} 8. bxc3 {[%clk 0:02:36.5]}
8... Qe7 {[%clk 0:02:57.1]} 9. h3 {[%clk 0:02:30.5]} 9... Nd8 {[%clk 0:02:54.9]}
10. Re1 {[%clk 0:02:25.1]} 10... Ne6 {[%clk 0:02:55]} 11. d4 {[%clk 0:02:21.2]}
11... Rd8 {[%clk 0:02:54.3]} 12. a4 {[%clk 0:02:12.3]} 12... Nf8 {[%clk
0:02:53.9]} 13. Ba3 {[%clk 0:02:03.6]} 13... Ng6 {[%clk 0:02:51.4]} 14. a5
{[%clk 0:01:55]} 14... a6 {[%clk 0:02:50.5]} 15. Rb1 {[%clk 0:01:52.6]} 15... c5
{[%clk 0:02:46.8]} 16. Bd5 {[%clk 0:01:38.7]} 16... Qc7 {[%clk 0:02:44.1]} 17.
dxe5 {[%clk 0:01:29.1]} 17... dxe5 {[%clk 0:02:43.1]} 18. c4 {[%clk 0:01:28.3]}
18... Rb8 {[%clk 0:02:37.9]} 19. Qd2 {[%clk 0:01:19.3]} 19... Nf4 {[%clk
0:02:33.5]} 20. Kh2 {[%clk 0:01:13.9]} 20... Be6 {[%clk 0:02:26.4]} 21. Qe3
{[%clk 0:01:01.5]} 21... Nd7 {[%clk 0:02:07.1]} 22. Qc3 {[%clk 0:00:57]} 22...
Bxd5 {[%clk 0:02:03.7]} 23. cxd5 {[%clk 0:00:52]} 23... f6 {[%clk 0:02:03.3]}
24. Bc1 {[%clk 0:00:48.7]} 24... Ng6 {[%clk 0:02:02.6]} 25. Be3 {[%clk
0:00:44.8]} 25... Ne7 {[%clk 0:01:46.5]} 26. Red1 {[%clk 0:00:40]} 26... Nc8
{[%clk 0:01:35.8]} 27. Nd2 {[%clk 0:00:30.8]} 27... Nd6 {[%clk 0:01:35.3]} 28.
Nc4 {[%clk 0:00:30.2]} 28... Nxe4 {[%clk 0:01:22.9]} 29. Qb3 {[%clk 0:00:13]}
29... Nd6 {[%clk 0:01:19.6]} 30. Nxd6 {[%clk 0:00:09.4]} 30... Qxd6 {[%clk
0:01:19.7]} 31. c4 {[%clk 0:00:07]} 31... Kh8 {[%clk 0:01:18.1]} 32. g3 {[%clk
0:00:04.9]} 32... f5 {[%clk 0:01:11.9]} 33. Bg5 {[%clk 0:00:02.7]} 33... Re8
{[%clk 0:01:10.5]} 0-1

[Event "Late-Titled-Tuesday-Blitz-February-27-2024"]
[Site "Chess.com"]
[Date "2024.02.27"]
[Round "8"]
[White "js20000"]
[Black "GothamChess"]
[Result "1-0"]
[WhiteElo "2850"]
[BlackElo "2688"]
[TimeControl "180+1"]
[EndTime "15:26:25 PST"]
[Termination "js20000 won by resignation"]

1. Nf3 {[%clk 0:03:00.9]} 1... g6 {[%clk 0:02:59.1]} 2. e4 {[%clk 0:02:59.1]}
2... Bg7 {[%clk 0:02:58.5]} 3. d4 {[%clk 0:02:59]} 3... d6 {[%clk 0:02:48.8]} 4.
Bd3 {[%clk 0:02:58.2]} 4... Nc6 {[%clk 0:02:48.1]} 5. c3 {[%clk 0:02:57.8]} 5...
e5 {[%clk 0:02:44.5]} 6. O-O {[%clk 0:02:58.2]} 6... Nf6 {[%clk 0:02:08.5]} 7.
h3 {[%clk 0:02:53.5]} 7... O-O {[%clk 0:02:05.5]} 8. Re1 {[%clk 0:02:48.7]} 8...
Re8 {[%clk 0:01:55.4]} 9. d5 {[%clk 0:02:44.4]} 9... Ne7 {[%clk 0:01:51.6]} 10.
c4 {[%clk 0:02:45]} 10... h6 {[%clk 0:01:50]} 11. Nc3 {[%clk 0:02:44.8]} 11...
g5 {[%clk 0:01:47.1]} 12. Nh2 {[%clk 0:02:39.4]} 12... Ng6 {[%clk 0:01:44.5]}
13. Ng4 {[%clk 0:02:37.9]} 13... Kh7 {[%clk 0:01:37.6]} 14. Nxf6+ {[%clk
0:02:27.2]} 14... Bxf6 {[%clk 0:01:34.7]} 15. Be2 {[%clk 0:02:27.3]} 15... Nf4
{[%clk 0:01:31.5]} 16. Bg4 {[%clk 0:02:26.7]} 16... Bxg4 {[%clk 0:01:22.5]} 17.
Qxg4 {[%clk 0:02:25]} 17... Qc8 {[%clk 0:01:20.7]} 18. Qxc8 {[%clk 0:02:20.7]}
18... Raxc8 {[%clk 0:01:17.9]} 19. Kh2 {[%clk 0:02:17.4]} 19... Nd3 {[%clk
0:01:14.8]} 20. Rf1 {[%clk 0:02:16.7]} 20... c6 {[%clk 0:01:09.2]} 21. b3 {[%clk
0:02:04.5]} 21... a6 {[%clk 0:00:47.5]} 22. Be3 {[%clk 0:02:02.6]} 22... Bd8
{[%clk 0:00:44.7]} 23. Rfd1 {[%clk 0:02:00.4]} 23... Nb4 {[%clk 0:00:36.4]} 24.
dxc6 {[%clk 0:01:59.7]} 24... Rxc6 {[%clk 0:00:32.9]} 25. Rac1 {[%clk
0:01:45.2]} 25... a5 {[%clk 0:00:31.4]} 26. a3 {[%clk 0:01:43.1]} 26... Na6
{[%clk 0:00:31.6]} 27. Nb5 {[%clk 0:01:43.1]} 27... Be7 {[%clk 0:00:27.7]} 28.
Rd3 {[%clk 0:01:39]} 28... Rd8 {[%clk 0:00:23]} 29. Rcd1 {[%clk 0:01:38.4]}
29... Kg7 {[%clk 0:00:20.7]} 30. Nc3 {[%clk 0:01:37.3]} 30... Bf8 {[%clk
0:00:15.7]} 31. Nd5 {[%clk 0:01:36.6]} 31... a4 {[%clk 0:00:15.9]} 32. bxa4
{[%clk 0:01:30.8]} 32... Rxc4 {[%clk 0:00:15.7]} 33. f3 {[%clk 0:01:29.2]} 33...
Rxa4 {[%clk 0:00:15]} 34. Rb1 {[%clk 0:01:27.1]} 34... Nc5 {[%clk 0:00:12]} 35.
Bxc5 {[%clk 0:01:25.8]} 35... dxc5 {[%clk 0:00:12.9]} 36. Rxb7 {[%clk
0:01:22.1]} 36... c4 {[%clk 0:00:13.4]} 37. Rc3 {[%clk 0:01:22.3]} 37... Bxa3
{[%clk 0:00:13.4]} 38. Nb6 {[%clk 0:01:18.7]} 38... Rb4 {[%clk 0:00:09.5]} 39.
Rxa3 {[%clk 0:01:16]} 39... Rd6 {[%clk 0:00:07.3]} 40. Nc8 {[%clk 0:01:10.5]}
40... Rxb7 {[%clk 0:00:05.9]} 41. Nxd6 {[%clk 0:01:10.5]} 1-0

[Event "Late-Titled-Tuesday-Blitz-February-27-2024"]
[Site "Chess.com"]
[Date "2024.02.27"]
[Round "8"]
[White "KNVB"]
[Black "mightysmasher"]
[Result "0-1"]
[WhiteElo "2803"]
[BlackElo "2574"]
[TimeControl "180+1"]
[EndTime "15:26:27 PST"]
[Termination "mightysmasher won on time"]

1. e4 {[%clk 0:03:00.9]} 1... e6 {[%clk 0:02:57.7]} 2. Nf3 {[%clk 0:02:55.3]}
2... d5 {[%clk 0:02:57.9]} 3. d3 {[%clk 0:02:56.2]} 3... dxe4 {[%clk 0:02:57.5]}
4. dxe4 {[%clk 0:02:57.1]} 4... Qxd1+ {[%clk 0:02:57.6]} 5. Kxd1 {[%clk
0:02:58]} 5... Nf6 {[%clk 0:02:57.7]} 6. Nfd2 {[%clk 0:02:57.7]} 6... Bd7 {[%clk
0:02:55.7]} 7. f3 {[%clk 0:02:57.4]} 7... c5 {[%clk 0:02:55.8]} 8. c3 {[%clk
0:02:57.8]} 8... Nc6 {[%clk 0:02:56.1]} 9. Kc2 {[%clk 0:02:57.5]} 9... O-O-O
{[%clk 0:02:56.5]} 10. a4 {[%clk 0:02:57.5]} 10... Bd6 {[%clk 0:02:55.9]} 11.
Nc4 {[%clk 0:02:58]} 11... Bc7 {[%clk 0:02:56]} 12. Be3 {[%clk 0:02:58.4]} 12...
b6 {[%clk 0:02:55.1]} 13. Nbd2 {[%clk 0:02:59]} 13... e5 {[%clk 0:02:55.2]} 14.
Bg5 {[%clk 0:02:47.5]} 14... Rhe8 {[%clk 0:02:51]} 15. Ne3 {[%clk 0:02:45.1]}
15... Ne7 {[%clk 0:02:36.8]} 16. Bc4 {[%clk 0:02:42.9]} 16... Rf8 {[%clk
0:02:32.9]} 17. Rhd1 {[%clk 0:02:25.8]} 17... h6 {[%clk 0:02:30.6]} 18. Bh4
{[%clk 0:02:16.1]} 18... g5 {[%clk 0:02:29.9]} 19. Bf2 {[%clk 0:02:16.6]} 19...
Ne8 {[%clk 0:02:23.3]} 20. Ba6+ {[%clk 0:02:07.7]} 20... Kb8 {[%clk 0:02:22.8]}
21. Ndc4 {[%clk 0:02:08.6]} 21... f5 {[%clk 0:02:16.9]} 22. exf5 {[%clk
0:02:05.3]} 22... Nxf5 {[%clk 0:02:16.5]} 23. Bb5 {[%clk 0:01:48.8]} 23... Nxe3+
{[%clk 0:02:12.9]} 24. Bxe3 {[%clk 0:01:04.1]} 24... Bf5+ {[%clk 0:02:09.7]} 25.
Kb3 {[%clk 0:01:03.2]} 25... Nf6 {[%clk 0:02:08.1]} 26. a5 {[%clk 0:00:52.8]}
26... Be6 {[%clk 0:02:04.7]} 27. axb6 {[%clk 0:00:50.7]} 27... Bxb6 {[%clk
0:02:02.7]} 28. Bf2 {[%clk 0:00:42.2]} 28... Nd5 {[%clk 0:01:49.4]} 29. Re1
{[%clk 0:00:23.5]} 29... Nf4 {[%clk 0:01:39]} 30. Rxe5 {[%clk 0:00:22.2]} 30...
Bxc4+ {[%clk 0:01:30.1]} 31. Bxc4 {[%clk 0:00:10.6]} 31... Rd2 {[%clk
0:01:28.3]} 32. Bxc5 {[%clk 0:00:03.2]} 32... Bxc5 {[%clk 0:01:26.3]} 33. Rxc5
{[%clk 0:00:04.1]} 33... Rf6 {[%clk 0:01:21]} 34. Rb5+ {[%clk 0:00:02.4]} 34...
Rb6 {[%clk 0:01:20.6]} 35. Rxb6+ {[%clk 0:00:02.2]} 35... axb6 {[%clk
0:01:21.5]} 36. g3 {[%clk 0:00:03.1]} 36... Ng6 {[%clk 0:01:17.3]} 37. Rh1
{[%clk 0:00:02.1]} 37... Ne5 {[%clk 0:01:16.7]} 38. f4 {[%clk 0:00:01.5]} 38...
Nc6 {[%clk 0:01:15.4]} 39. fxg5 {[%clk 0:00:01.3]} 39... Na5+ {[%clk 0:01:14.4]}
40. Ka4 {[%clk 0:00:01.2]} 40... Nxc4 {[%clk 0:01:12.9]} 41. gxh6 {[%clk
0:00:02.1]} 41... Rxb2 {[%clk 0:01:13]} 0-1

[Event "Late-Titled-Tuesday-Blitz-February-27-2024"]
[Site "Chess.com"]
[Date "2024.02.27"]
[Round "8"]
[White "fandebobbyfischer"]
[Black "PositionalPanther"]
[Result "0-1"]
[WhiteElo "2678"]
[BlackElo "2514"]
[TimeControl "180+1"]
[EndTime "15:26:30 PST"]
[Termination "PositionalPanther won on time"]

1. Nf3 {[%clk 0:03:00.9]} 1... d5 {[%clk 0:02:59.9]} 2. b3 {[%clk 0:03:01.4]}
2... Bf5 {[%clk 0:02:58.9]} 3. Bb2 {[%clk 0:03:01.7]} 3... e6 {[%clk 0:02:54.7]}
4. d3 {[%clk 0:03:00.8]} 4... h6 {[%clk 0:02:54.6]} 5. g3 {[%clk 0:03:00.7]}
5... Nf6 {[%clk 0:02:54.4]} 6. Bg2 {[%clk 0:03:01.1]} 6... c6 {[%clk 0:02:52.5]}
7. O-O {[%clk 0:03:01.5]} 7... Nbd7 {[%clk 0:02:50.9]} 8. Nbd2 {[%clk
0:03:01.9]} 8... Bh7 {[%clk 0:02:50.8]} 9. a3 {[%clk 0:03:00.9]} 9... Be7 {[%clk
0:02:49]} 10. c4 {[%clk 0:03:00.8]} 10... O-O {[%clk 0:02:48.6]} 11. Re1 {[%clk
0:02:59.4]} 11... a5 {[%clk 0:02:47.9]} 12. Qc2 {[%clk 0:02:58.7]} 12... b5
{[%clk 0:02:41.1]} 13. Rad1 {[%clk 0:02:57]} 13... Qb8 {[%clk 0:02:40]} 14. e4
{[%clk 0:02:53.1]} 14... bxc4 {[%clk 0:02:30.3]} 15. bxc4 {[%clk 0:02:51.3]}
15... dxe4 {[%clk 0:02:29.7]} 16. dxe4 {[%clk 0:02:51.2]} 16... Nc5 {[%clk
0:02:23.1]} 17. Ne5 {[%clk 0:02:49.4]} 17... Qc7 {[%clk 0:02:14.6]} 18. Bc3
{[%clk 0:02:12.1]} 18... Rfd8 {[%clk 0:02:09.7]} 19. h3 {[%clk 0:02:08.8]} 19...
Bd6 {[%clk 0:02:01.4]} 20. f4 {[%clk 0:02:01.5]} 20... Bxe5 {[%clk 0:01:53.8]}
21. Bxe5 {[%clk 0:02:02.4]} 21... Qe7 {[%clk 0:01:50.1]} 22. g4 {[%clk 0:01:18]}
22... Nd3 {[%clk 0:01:44.3]} 23. Qc3 {[%clk 0:00:54.1]} 23... Qc5+ {[%clk
0:01:23.5]} 24. Kh2 {[%clk 0:00:53.8]} 24... Nxe1 {[%clk 0:01:23.4]} 25. Rxe1
{[%clk 0:00:54.7]} 25... Qf2 {[%clk 0:01:18.7]} 26. Nf1 {[%clk 0:00:17]} 26...
Nxe4 {[%clk 0:01:08]} 27. Qa1 {[%clk 0:00:16.5]} 27... f6 {[%clk 0:00:58.7]} 28.
Bb2 {[%clk 0:00:15.6]} 28... Nd2 {[%clk 0:00:48.5]} 0-1

[Event "Late-Titled-Tuesday-Blitz-February-27-2024"]
[Site "Chess.com"]
[Date "2024.02.27"]
[Round "8"]
[White "rcmz"]
[Black "egnfanclub"]
[Result "1-0"]
[WhiteElo "2226"]
[BlackElo "2391"]
[TimeControl "180+1"]
[EndTime "15:26:32 PST"]
[Termination "rcmz won by resignation"]

1. b4 {[%clk 0:03:00.9]} 1... e5 {[%clk 0:02:59.3]} 2. Bb2 {[%clk 0:03:00.6]}
2... Bxb4 {[%clk 0:02:58.8]} 3. Bxe5 {[%clk 0:03:00.5]} 3... Nf6 {[%clk
0:02:59.1]} 4. c4 {[%clk 0:03:00.2]} 4... O-O {[%clk 0:02:59]} 5. Nf3 {[%clk
0:02:59.9]} 5... Re8 {[%clk 0:02:57.8]} 6. e3 {[%clk 0:03:00]} 6... Nc6 {[%clk
0:02:55.3]} 7. Bb2 {[%clk 0:02:58.8]} 7... d5 {[%clk 0:02:52.4]} 8. cxd5 {[%clk
0:02:59.7]} 8... Nxd5 {[%clk 0:02:48.6]} 9. Be2 {[%clk 0:03:00.6]} 9... Rxe3
{[%clk 0:02:42.5]} 10. fxe3 {[%clk 0:02:59.5]} 10... Nxe3 {[%clk 0:02:43.4]} 11.
Qb3 {[%clk 0:02:58.9]} 11... Nxg2+ {[%clk 0:02:44]} 12. Kd1 {[%clk 0:02:58.4]}
12... Bg4 {[%clk 0:01:57.8]} 13. Rg1 {[%clk 0:02:46.3]} 13... Bh3 {[%clk
0:01:44.2]} 14. Kc1 {[%clk 0:01:57.8]} 14... Bc5 {[%clk 0:01:43.9]} 15. d4
{[%clk 0:01:52]} 15... Nxd4 {[%clk 0:01:39.1]} 16. Nxd4 {[%clk 0:01:47.3]} 16...
Bxd4 {[%clk 0:01:39.5]} 17. Qxh3 {[%clk 0:01:37.4]} 17... Bxb2+ {[%clk
0:01:39.5]} 18. Kxb2 {[%clk 0:01:35.5]} 18... Qd4+ {[%clk 0:01:39.5]} 19. Nc3
{[%clk 0:01:34.5]} 19... Qd2+ {[%clk 0:01:15]} 20. Kb3 {[%clk 0:01:31.4]} 20...
Ne3 {[%clk 0:01:14.9]} 21. Rac1 {[%clk 0:01:03]} 21... a5 {[%clk 0:01:06.3]} 22.
a4 {[%clk 0:01:01.8]} 22... b5 {[%clk 0:00:58.5]} 23. Nxb5 {[%clk 0:00:35.1]}
23... Qxe2 {[%clk 0:00:48.5]} 24. Rc3 {[%clk 0:00:34.1]} 24... Nd5 {[%clk
0:00:37.1]} 25. Qg2 {[%clk 0:00:23.4]} 25... Qe5 {[%clk 0:00:25.2]} 26. Rd3
{[%clk 0:00:19.8]} 26... Nf4 {[%clk 0:00:22.2]} 27. Qxa8+ {[%clk 0:00:18.2]} 1-0

[Event "Late-Titled-Tuesday-Blitz-February-27-2024"]
[Site "Chess.com"]
[Date "2024.02.27"]
[Round "8"]
[White "farzadbfd"]
[Black "Brahianzevich"]
[Result "1-0"]
[WhiteElo "2685"]
[BlackElo "2502"]
[TimeControl "180+1"]
[EndTime "15:26:36 PST"]
[Termination "farzadbfd won by resignation"]

1. e4 {[%clk 0:03:00.9]} 1... c5 {[%clk 0:02:59.8]} 2. Nc3 {[%clk 0:03:00.8]}
2... a6 {[%clk 0:02:59.2]} 3. g3 {[%clk 0:03:01.3]} 3... b5 {[%clk 0:02:59]} 4.
Bg2 {[%clk 0:03:02.1]} 4... Bb7 {[%clk 0:02:59.6]} 5. d3 {[%clk 0:03:02.7]} 5...
e6 {[%clk 0:02:59.9]} 6. Be3 {[%clk 0:03:03.4]} 6... Nf6 {[%clk 0:02:56.5]} 7.
Nge2 {[%clk 0:03:03.8]} 7... d6 {[%clk 0:02:52.3]} 8. O-O {[%clk 0:03:02.5]}
8... Nc6 {[%clk 0:02:52.2]} 9. h3 {[%clk 0:03:02.7]} 9... Be7 {[%clk 0:02:51.3]}
10. Qd2 {[%clk 0:03:03.2]} 10... O-O {[%clk 0:02:50.7]} 11. f4 {[%clk
0:03:03.6]} 11... d5 {[%clk 0:02:45.8]} 12. exd5 {[%clk 0:02:57]} 12... exd5
{[%clk 0:02:38.3]} 13. d4 {[%clk 0:02:57.2]} 13... Qb6 {[%clk 0:02:16.5]} 14.
dxc5 {[%clk 0:02:25.4]} 14... Bxc5 {[%clk 0:02:16.2]} 15. Bxc5 {[%clk
0:02:25.4]} 15... Qxc5+ {[%clk 0:02:17.1]} 16. Kh2 {[%clk 0:02:25.3]} 16... d4
{[%clk 0:01:50.1]} 17. Ne4 {[%clk 0:02:16.9]} 17... Nxe4 {[%clk 0:01:43.7]} 18.
Bxe4 {[%clk 0:02:17.8]} 18... Rfe8 {[%clk 0:01:43.6]} 19. Bg2 {[%clk 0:02:12.1]}
19... Rad8 {[%clk 0:01:34]} 20. Nc1 {[%clk 0:02:00.2]} 20... Re3 {[%clk
0:01:18.1]} 21. Nb3 {[%clk 0:01:52.7]} 21... Qe7 {[%clk 0:01:02.3]} 22. Rf2
{[%clk 0:01:37.2]} 22... d3 {[%clk 0:00:39]} 23. Bxc6 {[%clk 0:00:40.5]} 23...
Bxc6 {[%clk 0:00:36.1]} 24. Rd1 {[%clk 0:00:40.7]} 24... h5 {[%clk 0:00:24.1]}
25. c3 {[%clk 0:00:37.9]} 25... h4 {[%clk 0:00:20.9]} 26. g4 {[%clk 0:00:35.5]}
26... g5 {[%clk 0:00:17.4]} 27. Nd4 {[%clk 0:00:35.4]} 27... Bb7 {[%clk
0:00:12.4]} 28. Nf5 {[%clk 0:00:35.2]} 28... Qe4 {[%clk 0:00:11.4]} 29. Qxe3
{[%clk 0:00:33.7]} 1-0

[Event "Late-Titled-Tuesday-Blitz-February-27-2024"]
[Site "Chess.com"]
[Date "2024.02.27"]
[Round "8"]
[White "Yurovskykh_Oleksandr"]
[Black "szachmistrz2500"]
[Result "0-1"]
[WhiteElo "2666"]
[BlackElo "2468"]
[TimeControl "180+1"]
[EndTime "15:26:50 PST"]
[Termination "szachmistrz2500 won by checkmate"]

1. d4 {[%clk 0:03:00.9]} 1... Nf6 {[%clk 0:02:58.6]} 2. Nf3 {[%clk 0:02:59.6]}
2... d5 {[%clk 0:02:54.3]} 3. c3 {[%clk 0:02:59.3]} 3... Bf5 {[%clk 0:02:52.6]}
4. Qb3 {[%clk 0:02:59.4]} 4... Qc8 {[%clk 0:02:49.3]} 5. Bg5 {[%clk 0:02:58.7]}
5... Nbd7 {[%clk 0:02:48.1]} 6. e3 {[%clk 0:02:58]} 6... e6 {[%clk 0:02:47.1]}
7. c4 {[%clk 0:02:57.8]} 7... c6 {[%clk 0:02:44.9]} 8. Nc3 {[%clk 0:02:58]} 8...
Be7 {[%clk 0:02:44.8]} 9. Rc1 {[%clk 0:02:57.6]} 9... O-O {[%clk 0:02:39.5]} 10.
Nh4 {[%clk 0:02:32.1]} 10... Bg4 {[%clk 0:02:37.7]} 11. h3 {[%clk 0:02:28.3]}
11... Bh5 {[%clk 0:02:37.5]} 12. g4 {[%clk 0:02:28.8]} 12... Bg6 {[%clk
0:02:37.7]} 13. Nxg6 {[%clk 0:02:29.4]} 13... fxg6 {[%clk 0:02:36.6]} 14. Bg2
{[%clk 0:02:15.6]} 14... Nb6 {[%clk 0:02:17.7]} 15. cxd5 {[%clk 0:01:52.7]}
15... exd5 {[%clk 0:02:16.5]} 16. O-O {[%clk 0:01:48.7]} 16... Qe6 {[%clk
0:02:06.6]} 17. e4 {[%clk 0:01:42]} 17... Rad8 {[%clk 0:01:47]} 18. e5 {[%clk
0:01:39.9]} 18... Nfd7 {[%clk 0:01:40.1]} 19. Bxe7 {[%clk 0:01:36.1]} 19... Qxe7
{[%clk 0:01:40.2]} 20. f4 {[%clk 0:01:36.7]} 20... h5 {[%clk 0:01:19.6]} 21. f5
{[%clk 0:01:24.9]} 21... hxg4 {[%clk 0:01:13.4]} 22. hxg4 {[%clk 0:01:24.9]}
22... gxf5 {[%clk 0:01:13.5]} 23. gxf5 {[%clk 0:01:25.8]} 23... Qg5 {[%clk
0:01:06.8]} 24. Qc2 {[%clk 0:01:08.9]} 24... Nc4 {[%clk 0:01:06.5]} 25. Rce1
{[%clk 0:01:03.3]} 25... Rde8 {[%clk 0:00:52.6]} 26. b3 {[%clk 0:00:57.8]} 26...
Ncxe5 {[%clk 0:00:52.1]} 27. dxe5 {[%clk 0:00:56.6]} 27... Nxe5 {[%clk
0:00:52.8]} 28. Qc1 {[%clk 0:00:39.4]} 28... Qh5 {[%clk 0:00:43.9]} 29. Qd1
{[%clk 0:00:36.7]} 29... Qg5 {[%clk 0:00:40]} 30. Qc1 {[%clk 0:00:24.9]} 30...
Qh5 {[%clk 0:00:38.7]} 31. Qd2 {[%clk 0:00:22.7]} 31... Rxf5 {[%clk 0:00:34.4]}
32. Rxf5 {[%clk 0:00:21.9]} 32... Qxf5 {[%clk 0:00:34.5]} 33. Rf1 {[%clk
0:00:20.7]} 33... Qg6 {[%clk 0:00:31.1]} 34. Ne2 {[%clk 0:00:18.6]} 34... Ng4
{[%clk 0:00:27]} 35. Nf4 {[%clk 0:00:17.6]} 35... Qh6 {[%clk 0:00:26.9]} 36. Qd4
{[%clk 0:00:13.5]} 36... Qh2# {[%clk 0:00:25.8]} 0-1